{"text_format":"2","workbook":"xlsx","n_sheets":1,"sheets":["NAVI掲載用（検索）"],"not_rendered":{"charts":0,"images":0,"macros":0,"external_links":0,"defined_names":2,"comments":0,"pivot_tables":0},"unopened":[],"bounds":{"document_bytes":16777216,"sheet_cells":100000,"run_cost":"one","rows_first":2000,"rows_last":500,"rows_between":2000,"halvings":0,"cell_chars":16384,"cell_head_chars":4096},"cells_cut":0,"cells_raw":0,"read":"whole","date_system":"1900"}

{"sheet":"NAVI掲載用（検索）","index":0,"n_rows":102,"n_cols":24,"rows_kept":102,"cut":false,"hidden":false,"merged":[[0,0,0,1],[0,4,0,6],[0,7,0,10],[0,11,0,12],[0,14,0,20]]}
["実施機関",null,null,null,"実施時間",null,null,"対象となる試験の種類",null,null,null,"事務系・技術系",null,null,"プログラムの内容"]
["府省名","補足","所在地","実施日","10:15～11:45","13:15～14:45","15:45～17:15","総合職試験","一般職試験","専門職試験","選考採用試験","事務系","技術系","実施形式","庁舎内の見学（執務室内及び設備）","庁舎内の見学（廊下の通行のみ）","業務説明","職員の経験談等の紹介","職員との座談会","業務案内用のビデオ上映","その他","コメント","HPのURL","HPのURL"]
["会計検査院","","千代田区霞が関３－２－２　中央合同庁舎第７号館","3月1日（金）","〇","〇","－","〇","〇","－","－","〇","〇","対面・オンライン併用","〇","－","〇","〇","－","－","－","【あらゆる分野の知識を生かせます！】\n会計検査院は、霞が関にある庁舎から政策や事業が行われている国内外の現場に足を運び、国民の税金が適切に使われているかを自らの目でチェックする仕事をしています。また、あらゆる分野を検査対象としているため、自身の持つ様々な知識を生かし、「検査」という仕事を行えることも特徴の一つです。当日のイベントでは、業務内容や働く上での魅力などをお伝えいたします！みなさんのご参加お待ちしています。",{"$f":"HYPERLINK(X3)","v":"https://www.jbaudit.go.jp/recruit/business.html"},"https://www.jbaudit.go.jp/recruit/business.html"]
["会計検査院","","千代田区霞が関３－２－２　中央合同庁舎第７号館","3月6日（水）","－","〇","〇","〇","〇","－","－","〇","〇","対面・オンライン併用","〇","－","〇","〇","－","－","－","【あらゆる分野の知識を生かせます！】\n会計検査院は、霞が関にある庁舎から政策や事業が行われている国内外の現場に足を運び、国民の税金が適切に使われているかを自らの目でチェックする仕事をしています。また、あらゆる分野を検査対象としているため、自身の持つ様々な知識を生かし、「検査」という仕事を行えることも特徴の一つです。当日のイベントでは、業務内容や働く上での魅力などをお伝えいたします！みなさんのご参加お待ちしています。",{"$f":"HYPERLINK(X4)","v":"https://www.jbaudit.go.jp/recruit/business.html"},"https://www.jbaudit.go.jp/recruit/business.html"]
["人事院","","千代田区霞が関１－２－３　中央合同庁舎５号館別館","3月5日（火）","〇","〇","〇","〇","〇","－","－","〇","－","対面・オンライン併用","〇","－","〇","－","〇","－","－","⼈事院は、⼈事⾏政の専⾨機関として、国の⾏政を担う国家公務員を⽀える役割を担っています。今回は、採⽤担当者が⼈事院の業務概要をご説明するとともに、複数名の職員と話ができる機会となっております。皆さまのご参加をお待ちしています︕","https://www.jinji.go.jp/jinjika/jinjika-saiyo.html","https://www.jinji.go.jp/jinjika/jinjika-saiyo.html"]
["内閣情報調査室・内閣衛星情報センター","","千代田区永田町１－６－１　中央合同庁舎８号館","3月5日（火）","〇","〇","－","－","〇","－","－","〇","〇","対面のみ","－","－","〇","〇","－","－","－","ぜひ１度お越しいただき、職員と直接お話いただければと思います！皆様のご参加をお待ちしております！","https://www.cas.go.jp/jp/saiyou/saiyou_info.html","https://www.cas.go.jp/jp/saiyou/saiyou_info.html"]
["内閣情報調査室・内閣衛星情報センター","","千代田区永田町１－６－１　中央合同庁舎８号館","3月6日（水）","〇","〇","－","－","〇","－","－","〇","〇","対面のみ","－","－","〇","－","〇","－","－","ぜひ１度お越しいただき、職員と直接お話いただければと思います！皆様のご参加をお待ちしております！","https://www.cas.go.jp/jp/saiyou/saiyou_info.html","https://www.cas.go.jp/jp/saiyou/saiyou_info.html"]
["内閣府","総合職","千代田区永田町1-6-1\n中央合同庁舎8号館","3月4日（月）","〇","－","〇","〇","－","－","－","〇","〇","対面のみ","〇","〇","〇","〇","－","－","－","【内閣府】。この３文字からは想像がつかないほど、内閣府は非常に幅広い分野を所掌しています。今回は、皆さんに内閣府の所掌の広さやおもしろさを感じてもらうべく、実際に働いている職員の講演、庁内見学といったプログラムを準備しておりますので、奮ってご参加ください。","https://job.axol.jp/hy/s/cao_25/public/top","https://job.axol.jp/hy/s/cao_25/public/top"]
["内閣府","","千代田区永田町１－６－１　中央合同庁舎第８号館","3月4日（月）","－","〇","－","－","〇","－","－","〇","〇","対面のみ","－","－","〇","〇","〇","－","－","経験豊富な係長級の職員がこれまでのキャリアパスや職場の雰囲気等について話をした後、\n時間の許す限り、みなさんからの質問にお答えします！","https://www8.cao.go.jp/jinji/saiyo/daisotsu/index2.html","https://www8.cao.go.jp/jinji/saiyo/daisotsu/index2.html"]
["公正取引委員会","","千代田区霞が関１−１−１　中央合同庁舎第６号館B棟","3月1日（金）","〇","〇","〇","〇","〇","－","－","〇","－","対面のみ","－","－","〇","〇","〇","－","－","ぜひ、公正取引委員会へお越しください！！","https://www.jftc.go.jp/soshiki/recruit/event.html","https://www.jftc.go.jp/soshiki/recruit/event.html"]
["公正取引委員会","","千代田区霞が関１−１−１　中央合同庁舎第６号館B棟","3月5日（火）","〇","〇","〇","〇","〇","－","－","〇","－","対面のみ","－","－","〇","〇","〇","－","－","ぜひ、公正取引委員会へお越しください！！","https://www.jftc.go.jp/soshiki/recruit/event.html","https://www.jftc.go.jp/soshiki/recruit/event.html"]
["警察庁","","千代田区霞が関2丁目１　合同庁舎２号館","3月3日（日）","－","〇","－","〇","〇","－","－","〇","〇","オンラインのみ","－","－","〇","〇","－","－","－","高校生や大学１、２年生の参加も大歓迎です！\nビギナー向けに分かりやすく警察庁の「使命」や「人」をお伝えします！","https://www.npa.go.jp/about/recruitment/event.html#kanchosyusai","https://www.npa.go.jp/about/recruitment/event.html#kanchosyusai"]
["警察庁","","千代田区霞が関2丁目１　合同庁舎２号館","3月3日（日）","－","－","〇","〇","〇","－","－","〇","〇","対面のみ","－","〇","〇","〇","－","－","－","高校生や大学１、２年生の参加も大歓迎です！\nビギナー向けに分かりやすく警察庁の「使命」や「人」をお伝えします！","https://www.npa.go.jp/about/recruitment/event.html#kanchosyusai","https://www.npa.go.jp/about/recruitment/event.html#kanchosyusai"]
["警察庁","","千代田区霞が関2丁目１　合同庁舎２号館","3月4日（月）","〇","－","－","〇","〇","－","－","〇","〇","オンラインのみ","－","－","〇","〇","－","－","－","高校生や大学１、２年生の参加も大歓迎です！\nビギナー向けに分かりやすく警察庁の「使命」や「人」をお伝えします！","https://www.npa.go.jp/about/recruitment/event.html#kanchosyusai","https://www.npa.go.jp/about/recruitment/event.html#kanchosyusai"]
["警察庁","","千代田区霞が関2丁目１　合同庁舎２号館","3月4日（月）","－","〇","－","〇","〇","－","－","〇","〇","対面のみ","－","〇","〇","〇","－","－","－","高校生や大学１、２年生の参加も大歓迎です！\nビギナー向けに分かりやすく警察庁の「使命」や「人」をお伝えします！","https://www.npa.go.jp/about/recruitment/event.html#kanchosyusai","https://www.npa.go.jp/about/recruitment/event.html#kanchosyusai"]
["警察庁","","千代田区霞が関2丁目１　合同庁舎２号館","3月4日（月）","－","－","〇","〇","〇","－","－","〇","〇","対面・オンライン併用","－","－","－","－","〇","－","－","高校生や大学１、２年生の参加も大歓迎です！\nビギナー向けに分かりやすく警察庁の「使命」や「人」をお伝えします！","https://www.npa.go.jp/about/recruitment/event.html#kanchosyusai","https://www.npa.go.jp/about/recruitment/event.html#kanchosyusai"]
["科学警察研究所","","千代田区霞が関１－２－２　中央合同庁舎２号館","3月3日（日）","〇","〇","〇","〇","－","－","－","－","〇","対面のみ","－","－","〇","〇","〇","－","－","各研究室の業務説明や研究員との質疑応答を予定しております。実際に研究業務を行っている方と話ができる機会となります。ぜひご参加ください。","https://www.npa.go.jp/nrips/jp/recruit/seminar.html","https://www.npa.go.jp/nrips/jp/recruit/seminar.html"]
["科学警察研究所","","千代田区霞が関１－２－２　中央合同庁舎２号館","3月4日（月）","〇","〇","〇","〇","－","－","－","－","〇","対面のみ","－","－","〇","〇","〇","－","－","各研究室の業務説明や研究員との質疑応答を予定しております。実際に研究業務を行っている方と話ができる機会となります。ぜひご参加ください。","https://www.npa.go.jp/nrips/jp/recruit/seminar.html","https://www.npa.go.jp/nrips/jp/recruit/seminar.html"]
["個人情報保護委員会","","東京都千代田区霞が関3-2-1　霞が関コモンゲート西館34階 ・地下鉄　霞ヶ関駅A13番出口から徒歩約4分 ・地下的　虎ノ門駅11番出口から徒歩2分","3月6日（水）","〇","〇","－","〇","〇","－","－","〇","－","対面のみ","－","〇","〇","〇","〇","－","－","個人情報保護委員会は、国民の大切な個人情報やマイナンバーが適切に取り扱われているかを監視・監督しています。\n業務説明会や職員との座談会を通じ、個人情報保護委員会の仕事の魅力を感じていただけるイベントですので、ぜひご参加ください！","https://www.ppc.go.jp/news/recruit/","https://www.ppc.go.jp/news/recruit/"]
["カジノ管理委員会","","港区虎ノ門4-3-1城山トラストタワー12・13階","3月1日（金）","〇","〇","〇","－","〇","－","－","〇","〇","対面のみ","〇","－","〇","〇","〇","－","－","関心を寄せていただき大変ありがとうございます。みなさまのご参加をお待ちしております！","https://www.jcrc.go.jp/about/recruit/recruit_6.html","https://www.jcrc.go.jp/about/recruit/recruit_6.html"]
["カジノ管理委員会","","港区虎ノ門4-3-1城山トラストタワー12・13階","3月4日（月）","〇","〇","〇","－","〇","－","－","〇","〇","オンラインのみ","－","－","〇","〇","〇","－","－","関心を寄せていただき大変ありがとうございます。みなさまのご参加をお待ちしております！","https://www.jcrc.go.jp/about/recruit/recruit_6.html","https://www.jcrc.go.jp/about/recruit/recruit_6.html"]
["金融庁","","東京都千代田区霞が関3－2－1 中央合同庁舎第７号館","3月6日（水）","〇","〇","〇","〇","〇","－","－","〇","〇","対面・オンライン併用","－","－","〇","〇","－","－","－","金融庁幹部職員による講演会を実施します。第１回では金融行政の目標や今後の方向性、第２回では資産運用による日本経済の成長、第３回では金融庁の組織戦略・改革をお話します。経験豊富な職員から金融行政の魅力ややりがいを聞くことができる機会ですのでぜひお越しください！","https://job.axol.jp/hy/s/fsa_25/public/top","https://job.axol.jp/hy/s/fsa_25/public/top"]
["消費者庁","","東京都千代田区霞が関3-1-1中央合同庁舎第4号館 全省庁共用108会議室","3月1日（金）","〇","－","－","〇","〇","－","－","〇","〇","対面のみ","－","－","〇","〇","－","－","〇","消費者庁では、消費者庁採用職員より業務説明及び職員の体験談をお話した後、質疑応答の時間を設けます。消費者庁を知る良いきっかけになるかと思いますので、是非ご参加ください！","https://www.caa.go.jp/about_us/recruitment/open2024","https://www.caa.go.jp/about_us/recruitment/open2024"]
["消費者庁","","東京都千代田区霞が関3-1-1中央合同庁舎第4号館 全省庁共用108会議室","3月1日（金）","－","〇","－","〇","〇","－","－","〇","〇","オンラインのみ","－","－","〇","〇","－","－","〇","消費者庁では、消費者庁採用職員より業務説明及び職員の体験談をお話した後、質疑応答の時間を設けます。消費者庁を知る良いきっかけになるかと思いますので、是非ご参加ください！","https://www.caa.go.jp/about_us/recruitment/open2024","https://www.caa.go.jp/about_us/recruitment/open2024"]
["消費者庁","","東京都千代田区霞が関3-1-1中央合同庁舎第4号館 共用408会議室","3月3日（日）","〇","－","－","－","〇","－","－","〇","〇","対面のみ","－","－","〇","〇","－","－","〇","消費者庁では、消費者庁採用職員より業務説明及び職員の体験談をお話した後、質疑応答の時間を設けます。消費者庁を知る良いきっかけになるかと思いますので、是非ご参加ください！","https://www.caa.go.jp/about_us/recruitment/open2024","https://www.caa.go.jp/about_us/recruitment/open2024"]
["こども家庭庁","総合職","千代田区霞が関3-2-5　霞が関ビルディング14階","3月1日（金）","〇","〇","－","〇","－","－","－","〇","－","対面・オンライン併用","－","－","〇","〇","－","－","－","こども家庭庁の管理職職員による政策説明会を実施いたします。是非ご参加ください！","https://www.cfa.go.jp/recruitment/sougou/event/","https://www.cfa.go.jp/recruitment/sougou/event/"]
["こども家庭庁","総合職","千代田区霞が関3-2-5　霞が関ビルディング14階","3月4日（月）","〇","〇","－","〇","－","－","－","〇","－","対面・オンライン併用","〇","－","〇","〇","〇","－","－","こども家庭庁の幹部職員による特別講演と若手座談会を実施いたします。是非ご参加ください！","https://www.cfa.go.jp/recruitment/sougou/event/","https://www.cfa.go.jp/recruitment/sougou/event/"]
["デジタル庁","","〒102ー0094\n東京都千代田区紀尾井町1-3　東京ガーデンテラス紀尾井町 19階、20階\n東京メトロ「永田町駅」　9a出口直結 東京メトロ「赤坂見附駅」　D出口から徒歩1分","3月4日（月）","－","〇","〇","〇","〇","－","－","〇","〇","対面のみ","－","〇","〇","〇","〇","－","－","デジタル庁は、”誰一人取り残されない、人に優しいデジタル化”をミッションに、社会のDXを加速させるべく日々取り組んでいます。この国のDXを実現したい方、新しい組織で変化を楽しみたい方は是非ご参加ください。","https://www.digital.go.jp/recruitment/recruiting-session","https://www.digital.go.jp/recruitment/recruiting-session"]
["デジタル庁","","〒102ー0094\n東京都千代田区紀尾井町1-3　東京ガーデンテラス紀尾井町 19階、20階\n東京メトロ「永田町駅」　9a出口直結 東京メトロ「赤坂見附駅」　D出口から徒歩1分","3月5日（火）","〇","－","〇","〇","〇","－","－","〇","〇","対面のみ","－","〇","〇","〇","〇","－","－","デジタル庁は、”誰一人取り残されない、人に優しいデジタル化”をミッションに、社会のDXを加速させるべく日々取り組んでいます。この国のDXを実現したい方、新しい組織で変化を楽しみたい方は是非ご参加ください。","https://www.digital.go.jp/recruitment/recruiting-session","https://www.digital.go.jp/recruitment/recruiting-session"]
["総務省","統計行政分野","東京都新宿区若松町１９－１ 総務省第2庁舎","3月5日（火）","－","〇","－","〇","－","－","－","－","〇","対面・オンライン併用","－","－","〇","〇","〇","－","－","総務省（統計行政分野）でも理系出身の職員が多く活躍していることをご存じでしょうか？国民の合理的な意思決定の元となる「社会の情報基盤」についてご紹介いたします！","https://www.stat.go.jp/info/saiyo/index.html","https://www.stat.go.jp/info/saiyo/index.html"]
["総務省","総合職事務系","東京都千代田区霞が関2-1-2 ・丸ノ内線・日比谷線・千代田線「霞ヶ関」駅下車、A3b出口直結・有楽町線「桜田門」駅下車、4番出口徒歩約3分","3月1日（金）","〇","〇","〇","〇","－","－","－","〇","－","対面・オンライン併用","－","－","〇","〇","－","－","－","「総て」を「務める」と書いて総務省。総務省は、幅広いフィールドを通じて、皆さんがもっとも身近に接する行政機能を担い、明日の日本を支える社会基盤作りを進めています。\n今回は「地方自治」にご関心がある方に向けたプログラムをご用意いたします！","https://mic-recruit.snar.jp/index.aspx","https://mic-recruit.snar.jp/index.aspx"]
["総務省","総合職事務系","東京都千代田区霞が関2-1-2 ・丸ノ内線・日比谷線・千代田線「霞ヶ関」駅下車、A3b出口直結・有楽町線「桜田門」駅下車、4番出口徒歩約3分","3月4日（月）","〇","〇","〇","〇","－","－","－","〇","－","対面・オンライン併用","－","－","〇","〇","〇","－","－","「総て」を「務める」と書いて総務省。総務省は、幅広いフィールドを通じて、皆さんがもっとも身近に接する行政機能を担い、明日の日本を支える社会基盤作りを進めています。\n今回は「国の行政管理・評価」「情報通信」にご関心がある方に向けたプログラムをご用意いたします！","https://mic-recruit.snar.jp/index.aspx","https://mic-recruit.snar.jp/index.aspx"]
["総務省","総合職事務系","東京都千代田区霞が関2-1-2 ・丸ノ内線・日比谷線・千代田線「霞ヶ関」駅下車、A3b出口直結・有楽町線「桜田門」駅下車、4番出口徒歩約3分","3月5日（火）","〇","〇","〇","〇","－","－","－","〇","－","対面・オンライン併用","－","－","〇","－","－","－","－","「総て」を「務める」と書いて総務省。総務省は、幅広いフィールドを通じて、皆さんがもっとも身近に接する行政機能を担い、明日の日本を支える社会基盤作りを進めています。\n今回は初めて総務省の話を聞く方に向けた説明を行います。","https://mic-recruit.snar.jp/index.aspx","https://mic-recruit.snar.jp/index.aspx"]
["総務省","総合職事務系","東京都千代田区霞が関2-1-2 ・丸ノ内線・日比谷線・千代田線「霞ヶ関」駅下車、A3b出口直結・有楽町線「桜田門」駅下車、4番出口徒歩約3分","3月6日（水）","〇","〇","〇","〇","－","－","－","〇","－","対面・オンライン併用","－","－","－","－","〇","－","－","「総て」を「務める」と書いて総務省。総務省は、幅広いフィールドを通じて、皆さんがもっとも身近に接する行政機能を担い、明日の日本を支える社会基盤作りを進めています。\n今回は若手職員を招いた座談会を実施します！","https://mic-recruit.snar.jp/index.aspx","https://mic-recruit.snar.jp/index.aspx"]
["総務省","技術系","東京都千代田区霞が関2-1-2 ・丸ノ内線・日比谷線・千代田線「霞ヶ関」駅下車、A3b出口直結・有楽町線「桜田門」駅下車、4番出口徒歩約3分","3月4日（月）","－","〇","－","〇","〇","－","－","－","〇","対面・オンライン併用","－","－","〇","〇","〇","－","－","情報通信行政の最前線を肌で感じるチャンスです。情報通信系以外の専攻の方も大歓迎ですので、お気軽にご参加ください！","https://www.soumu.go.jp/menu_syokai/saiyou/isougou_setumeikai.html","https://www.soumu.go.jp/menu_syokai/saiyou/isougou_setumeikai.html"]
["総務省","技術系","東京都千代田区霞が関2-1-2 ・丸ノ内線・日比谷線・千代田線「霞ヶ関」駅下車、A3b出口直結・有楽町線「桜田門」駅下車、4番出口徒歩約3分","3月5日（火）","－","〇","－","〇","〇","－","－","－","〇","対面・オンライン併用","－","－","〇","〇","〇","－","－","情報通信行政の最前線を肌で感じるチャンスです。情報通信系以外の専攻の方も大歓迎ですので、お気軽にご参加ください！","https://www.soumu.go.jp/menu_syokai/saiyou/isougou_setumeikai.html","https://www.soumu.go.jp/menu_syokai/saiyou/isougou_setumeikai.html"]
["総務省","一般職事務系","東京都千代田区霞が関２ー１ー２中央合同庁舎第２号館","3月4日（月）","〇","〇","〇","－","〇","－","－","〇","－","対面・オンライン併用","－","－","〇","〇","－","－","－","実際に政策の最前線で働いている職員が、現在取り組んでいる業務やこれまでの経験談を中心にお話しします！\n分野ごと（統計、行政評価・管理、地方自治、情報通信）に分かれて説明を行います。\nもともと総務省への就職を目指している方はもちろんのこと、総務省に少しでも関心がある方、\nまだ進路が定まっていない方など、どなたでも大歓迎ですので、ぜひご参加ください！","https://www.soumu.go.jp/menu_syokai/saiyou/setumeikai.html","https://www.soumu.go.jp/menu_syokai/saiyou/setumeikai.html"]
["法務省","法務省【民事局】","東京都千代田区霞が関１－１－１　中央合同庁舎６号館Ａ棟\n","3月4日（月）","－","〇","－","〇","〇","－","－","〇","－","対面・オンライン併用","－","－","〇","－","－","－","－","","https://www.moj.go.jp/jinji/shomu/kanbou_jinji03b.html","https://www.moj.go.jp/jinji/shomu/kanbou_jinji03b.html"]
["法務省","法務省【保護局】","東京都千代田区霞が関１－１－１　中央合同庁舎６号館Ａ棟\n","3月4日（月）","－","－","〇","〇","〇","〇","－","〇","－","対面・オンライン併用","－","－","〇","－","－","－","－","更生保護・再犯防止の取組について、興味を持っていただければ幸いです！\t\t\t\t\t\n\t\t\t\t\t\n","https://www.moj.go.jp/jinji/shomu/kanbou_jinji03b.html","https://www.moj.go.jp/jinji/shomu/kanbou_jinji03b.html"]
["法務省","法務省【人事課】","東京都千代田区霞が関１－１－１　中央合同庁舎６号館Ａ棟\n","3月1日（金）","〇","〇","－","〇","〇","〇","－","〇","〇","対面・オンライン併用","〇","－","〇","－","－","－","－","法務省にはどのような部署や職種があるのかなど、法務省全体の概要を知りたい方向けのプログラムです！対面参加のみ、ミニ職場見学ツアーも実施予定です！（変更の可能性あり）\t\t","https://www.moj.go.jp/jinji/shomu/kanbou_jinji03b.html","https://www.moj.go.jp/jinji/shomu/kanbou_jinji03b.html"]
["法務省","法務省【施設課】（技術系）","東京都千代田区霞が関１－１－１　中央合同庁舎６号館Ａ棟\n","3月1日（金）","－","－","〇","〇","〇","－","－","－","〇","対面・オンライン併用","〇","－","〇","〇","〇","－","－","刑務所や少年院などの建物の設計、工事、維持管理に携わる仕事をしています。\nこれができるのは日本で施設課だけ！興味のある方はぜひ説明を聞きに来てください！\t\t\t\t\n\t\t\t\t\t","https://www.moj.go.jp/jinji/shomu/kanbou_jinji03b.html","https://www.moj.go.jp/jinji/shomu/kanbou_jinji03b.html"]
["法務省","法務省【刑事局】","東京都千代田区霞が関１－１－１　中央合同庁舎６号館Ａ棟\n","3月4日（月）","－","－","〇","－","〇","－","－","〇","－","対面・オンライン併用","－","－","〇","－","－","－","－","検察庁の業務に興味のある方の参加をお待ちしております！","https://www.moj.go.jp/jinji/shomu/kanbou_jinji03b.html","https://www.moj.go.jp/jinji/shomu/kanbou_jinji03b.html"]
["法務省","法務省【矯正局】","東京都千代田区霞が関１－１－１　中央合同庁舎６号館Ａ棟\n","3月4日（月）","〇","〇","－","〇","－","〇","－","〇","－","対面・オンライン併用","－","－","〇","〇","－","－","－","","https://www.moj.go.jp/jinji/shomu/kanbou_jinji03b.html","https://www.moj.go.jp/jinji/shomu/kanbou_jinji03b.html"]
["出入国在留管理庁","","千代田区霞が関１－１－１　中央合同庁舎６号館","3月3日（日）","〇","〇","〇","〇","〇","－","－","〇","－","オンラインのみ","－","－","〇","－","－","－","－","当庁に少しでも興味・関心のある方、ぜひお気軽に御参加ください！","https://www.moj.go.jp/isa/supply/recruitment/juken6.html","https://www.moj.go.jp/isa/supply/recruitment/juken6.html"]
["出入国在留管理庁","","千代田区霞が関１－１－１　中央合同庁舎６号館","3月4日（月）","〇","〇","〇","〇","〇","－","－","〇","－","対面のみ","〇","〇","〇","－","〇","－","〇","当庁に少しでも興味・関心のある方、ぜひお気軽に御参加ください！","https://www.moj.go.jp/isa/supply/recruitment/juken6.html","https://www.moj.go.jp/isa/supply/recruitment/juken6.html"]
["出入国在留管理庁","","千代田区霞が関１－１－１　中央合同庁舎６号館","3月5日（火）","〇","〇","〇","〇","〇","－","－","〇","－","対面のみ","〇","〇","〇","－","〇","－","〇","当庁に少しでも興味・関心のある方、ぜひお気軽に御参加ください！","https://www.moj.go.jp/isa/supply/recruitment/juken6.html","https://www.moj.go.jp/isa/supply/recruitment/juken6.html"]
["公安調査庁","","東京都千代田区霞が関1-1-1","3月4日（月）","〇","〇","〇","〇","〇","－","－","〇","〇","対面・オンライン併用","－","－","〇","〇","〇","－","－","当庁は、情報の力で。国民を守る官庁です。\nインテリジェンスの業務に興味のある方は、是非、当庁の業務説明会にお越しください。","https://www.moj.go.jp/psia/index.html","https://www.moj.go.jp/psia/index.html"]
["公安調査庁","","東京都千代田区霞が関1-1-1","3月5日（火）","〇","〇","〇","〇","〇","－","－","〇","〇","対面・オンライン併用","－","－","〇","〇","〇","－","－","当庁は、情報の力で、国民を守る官庁です。\nインテリジェンスの業務に興味のある方は、是非、当庁の業務説明会にお越しください。","https://www.moj.go.jp/psia/index.html","https://www.moj.go.jp/psia/index.html"]
["外務省","","東京都千代田区霞が関２－２－１","3月5日（火）","〇","〇","〇","〇","－","－","－","〇","－","対面・オンライン併用","－","－","〇","〇","－","－","－","更に年次の上の職員が登壇し、その豊富な経験に基づいて、外交の世界の醍醐味についてじっくりお話しさせていただきます。奮ってご参加ください。","https://www.mofa.go.jp/mofaj/annai/saiyo/index.html","https://www.mofa.go.jp/mofaj/annai/saiyo/index.html"]
["財務省本省","","千代田区霞が関３－１－１","3月6日（水）","〇","〇","〇","〇","－","－","－","〇","〇","対面・オンライン併用","－","－","〇","－","－","－","－","","https://job.axol.jp/hy/s/mof_25/public/top","https://job.axol.jp/hy/s/mof_25/public/top"]
["財務省財務局","","千代田区霞が関3-1-1\n（地下鉄　霞ヶ関駅　最寄出口）\n・丸ノ内線　A13（徒歩3分）","3月5日（火）","〇","〇","〇","〇","－","〇","－","〇","－","対面・オンライン併用","－","－","〇","〇","－","－","－","　財務省の総合出先機関である「財務局」は、財政・金融等の業務を通じて地域経済の発展・国の財政に貢献しています！財務局の仕事は、国の施策に携わりながら地域のために働くことのできるとてもやりがいのあるものとなっています！\n　説明会は事前予約制となっていますので申し込みをお忘れなく！たくさんの方のご参加をお待ちしています(^^)","https://lfb.mof.go.jp/recruit/saiyou.html","https://lfb.mof.go.jp/recruit/saiyou.html"]
["財務省税関","","東京都千代田区霞が関３－１－１丸ノ内線・日比谷線・千代田線 「霞ヶ関駅」 A13番出口 銀座線 「虎ノ門駅」 6番出口 ","3月4日（月）","〇","〇","〇","〇","〇","－","－","〇","〇","対面・オンライン併用","－","－","〇","〇","〇","－","－","","https://www.customs.go.jp/saiyou/sogosaiyo.html#briefing","https://www.customs.go.jp/saiyou/sogosaiyo.html#briefing"]
["国税庁","事務系","千代田区霞ヶ関3-1-1 国税庁本庁(財務省5階)","3月5日（火）","〇","〇","〇","〇","－","－","－","〇","－","対面・オンライン併用","－","〇","〇","〇","〇","－","－","","https://www.i-note.jp/national-tax-agency/event/nta/allevents.html","https://www.i-note.jp/national-tax-agency/event/nta/allevents.html"]
["国税庁","事務系","千代田区霞ヶ関3-1-1\n国税庁本庁(財務省5階)","3月6日（水）","－","〇","－","〇","－","－","－","〇","－","対面のみ","－","〇","〇","〇","〇","－","－","","https://www.i-note.jp/national-tax-agency/event/nta/allevents.html","https://www.i-note.jp/national-tax-agency/event/nta/allevents.html"]
["国税庁","技術系","〒100-8978　\n東京都千代田区霞が関3-1-1（財務省ビル5階）","3月1日（金）","〇","〇","〇","〇","－","－","－","－","〇","対面のみ","〇","〇","〇","〇","〇","－","〇","国税庁は酒類業を所管しており、技術系職員は「鑑定官」として酒類の分析・製造者への技術支援等を実施しています。当日は、総合職技術系職員からの業務説明のほか、庁舎内の見学や香りサンプルを用いた官能評価体験も予定しております。お気軽にご参加ください。","https://www.nta.go.jp/about/recruitment/gijyutsu/seminar/index.htm","https://www.nta.go.jp/about/recruitment/gijyutsu/seminar/index.htm"]
["国税庁","技術系","〒100-8978　\n東京都千代田区霞が関3-1-1（財務省ビル5階）","3月4日（月）","〇","〇","〇","〇","－","－","－","－","〇","対面のみ","〇","〇","〇","－","〇","－","－","国税庁は酒類業を所管しており、技術系職員は「鑑定官」として酒類の分析・製造者への技術支援等を実施しています。当日は、総合職技術系職員からの業務説明のほか、庁舎内の見学や香りサンプルを用いた官能評価体験も予定しております。お気軽にご参加ください。","https://www.nta.go.jp/about/recruitment/gijyutsu/seminar/index.htm","https://www.nta.go.jp/about/recruitment/gijyutsu/seminar/index.htm"]
["国税庁","技術系","〒100-8978　東京都千代田区霞が関3-1-1（財務省ビル5階）","3月5日（火）","〇","〇","〇","〇","－","－","－","－","〇","対面のみ","〇","〇","〇","－","〇","－","－","国税庁は酒類業を所管しており、技術系職員は「鑑定官」として酒類の分析・製造者への技術支援等を実施しています。当日は、総合職技術系職員からの業務説明のほか、庁舎内の見学や香りサンプルを用いた官能評価体験も予定しております。お気軽にご参加ください。","https://www.nta.go.jp/about/recruitment/gijyutsu/seminar/index.htm","https://www.nta.go.jp/about/recruitment/gijyutsu/seminar/index.htm"]
["国税庁","技術系","〒100-8978　東京都千代田区霞が関3-1-1（財務省ビル5階）","3月6日（水）","〇","〇","〇","〇","－","－","－","－","〇","対面のみ","〇","〇","〇","－","〇","－","－","国税庁は酒類業を所管しており、技術系職員は「鑑定官」として酒類の分析・製造者への技術支援等を実施しています。当日は、総合職技術系職員からの業務説明のほか、庁舎内の見学や香りサンプルを用いた官能評価体験も予定しております。お気軽にご参加ください。","https://www.nta.go.jp/about/recruitment/gijyutsu/seminar/index.htm","https://www.nta.go.jp/about/recruitment/gijyutsu/seminar/index.htm"]
["文部科学省","技術系","千代田区霞が関３－２－２","3月6日（水）","〇","〇","〇","〇","〇","－","－","－","〇","対面のみ","－","－","〇","〇","〇","－","－","就職先の選択肢の一つとして、文部科学省を考えてみませんか？\nこの機会に足を運んでいただき、ぜひとも興味を持ってもらえればと思います。\n文部科学省は理系の皆さんも心よりお待ちしております！","https://www.mext.go.jp/b_menu/saiyou/mext_00044.html","https://www.mext.go.jp/b_menu/saiyou/mext_00044.html"]
["厚生労働省","薬系（化学・生物・薬学）","東京都千代田区霞が関1-2-2中央合同庁舎５号館15階　専用第12会議室","3月1日（金）","〇","〇","〇","〇","－","－","－","－","〇","対面のみ","－","－","〇","〇","〇","－","－","薬系技官は、化学、生物、薬学などの基礎知識を背景とした技術系の行政官です。\n医薬品や食品、化学物質など「モノ」が人体に与える影響に着目した、国民の暮らしや健康保持・増進に関する制度作りのほか、安全な医療を届けるための仕組み作りなどの分野を中心に活躍しています。\n皆様のご参加をお待ちしております。","https://www.mhlw.go.jp/general/saiyo/kokka1/yakukei/information/","https://www.mhlw.go.jp/general/saiyo/kokka1/yakukei/information/"]
["厚生労働省","総合職事務系","千代田区霞が関１－２－２　中央合同庁舎５号館","3月6日（水）","〇","〇","〇","〇","－","－","－","〇","－","対面・オンライン併用","－","－","〇","〇","－","－","－","厚生労働省では、国民一人ひとりの生活に寄り添い、支えるために、医療・公衆衛生・介護・年金・労働・福祉などの政策を通じて、様々な取組を行っています。\n課題多きこの国で、一人ひとりの毎日の生活を支え、それぞれの「当たり前」を実現するために、そしてこれからも安心して暮らし続けられる社会をつくるために何ができるのか。厚生労働省が取り組んでいる政策や厚生労働行政の魅力を、経験豊富な職員からたっぷりお伝えします。","http://www.i-note.jp/mhlw/event/sougou-jimu/240306.html","http://www.i-note.jp/mhlw/event/sougou-jimu/240306.html"]
["厚生労働省","数理・デジタル系","東京都千代田区霞が関１－２－２　中央合同庁舎第５号館","3月1日（金）","〇","〇","〇","〇","－","－","－","－","〇","対面のみ","〇","－","〇","〇","〇","－","－","厚生労働省では、「ひと、くらし、みらいのために」、皆さんの生活に寄り添った行政として、様々な取組を行っています。数理科学やデジタルの素養を活かしたいという志を持つ皆さんを心からお待ちしています。 ※イベント当日は、総合職（数理・デジタル系）の職員がご説明します。","https://www.mhlw.go.jp/general/saiyo/kokka1/suuri.html","https://www.mhlw.go.jp/general/saiyo/kokka1/suuri.html"]
["厚生労働省","数理・デジタル系","東京都千代田区霞が関１－２－２　中央合同庁舎第５号館","3月2日（土）","〇","〇","〇","〇","－","－","－","－","〇","オンラインのみ","－","－","〇","〇","－","－","－","厚生労働省では、「ひと、くらし、みらいのために」、皆さんの生活に寄り添った行政として、様々な取組を行っています。数理科学やデジタルの素養を活かしたいという志を持つ皆さんを心からお待ちしています。 ※イベント当日は、総合職（数理・デジタル系）の職員がご説明します。","https://www.mhlw.go.jp/general/saiyo/kokka1/suuri.html","https://www.mhlw.go.jp/general/saiyo/kokka1/suuri.html"]
["厚生労働省","数理・デジタル系","東京都千代田区霞が関１－２－２　中央合同庁舎第５号館","3月4日（月）","〇","〇","〇","〇","－","－","－","－","〇","対面のみ","〇","－","〇","〇","〇","－","－","厚生労働省では、「ひと、くらし、みらいのために」、皆さんの生活に寄り添った行政として、様々な取組を行っています。数理科学やデジタルの素養を活かしたいという志を持つ皆さんを心からお待ちしています。 ※イベント当日は、総合職（数理・デジタル系）の職員がご説明します。","https://www.mhlw.go.jp/general/saiyo/kokka1/suuri.html","https://www.mhlw.go.jp/general/saiyo/kokka1/suuri.html"]
["厚生労働省","数理・デジタル系","東京都千代田区霞が関１－２－２　中央合同庁舎第５号館","3月5日（火）","〇","〇","〇","〇","－","－","－","－","〇","対面のみ","〇","－","〇","〇","〇","－","－","厚生労働省では、「ひと、くらし、みらいのために」、皆さんの生活に寄り添った行政として、様々な取組を行っています。数理科学やデジタルの素養を活かしたいという志を持つ皆さんを心からお待ちしています。 ※イベント当日は、総合職（数理・デジタル系）の職員がご説明します。","https://www.mhlw.go.jp/general/saiyo/kokka1/suuri.html","https://www.mhlw.go.jp/general/saiyo/kokka1/suuri.html"]
["厚生労働省","数理・デジタル系","東京都千代田区霞が関１－２－２　中央合同庁舎第５号館","3月6日（水）","〇","〇","〇","〇","－","－","－","－","〇","対面のみ","〇","－","〇","〇","〇","－","－","厚生労働省では、「ひと、くらし、みらいのために」、皆さんの生活に寄り添った行政として、様々な取組を行っています。数理科学やデジタルの素養を活かしたいという志を持つ皆さんを心からお待ちしています。 ※イベント当日は、総合職（数理・デジタル系）の職員がご説明します。","https://www.mhlw.go.jp/general/saiyo/kokka1/suuri.html","https://www.mhlw.go.jp/general/saiyo/kokka1/suuri.html"]
["厚生労働省","人間科学","千代田区霞が関１－２－２　中央合同庁舎５号館12階（公園側）　職業安定局第１会議室","3月4日（月）","〇","〇","〇","〇","－","－","－","－","〇","対面のみ","－","－","〇","〇","〇","－","－","総合職（人間科学区分）職員による業務説明や経験談等のご紹介をします。\n直接会って話を聴ける機会ですのでご興味のある方は是非ご参加ください！","https://www.mhlw.go.jp/general/saiyo/kokka1/open_seminar_spring.html","https://www.mhlw.go.jp/general/saiyo/kokka1/open_seminar_spring.html"]
["厚生労働省","獣医系","千代田区霞が関１－２－２　中央合同庁舎第５号館","3月5日（火）","〇","〇","－","－","－","－","〇","－","〇","対面・オンライン併用","－","－","〇","〇","〇","－","－","様々な分野で働く獣医系技術職員が業務の内容を説明し、みなさんの疑問にも直接お答えします！",{"$f":"HYPERLINK(X68)","v":"https://www.mhlw.go.jp/general/saiyo/jyuui/"},"https://www.mhlw.go.jp/general/saiyo/jyuui/"]
["厚生労働省","一般職事務系","東京都千代田区霞が関1-2-2　中央合同庁舎５号館","3月5日（火）","〇","－","－","－","〇","－","－","〇","－","オンラインのみ","－","－","〇","－","〇","－","－","国家公務員を志望する学生等を対象としたイベントです。霞が関の雰囲気を感じることができる絶好の機会です！","https://www.i-note.jp/mhlw/kasumi_open/kasumi_open.html","https://www.i-note.jp/mhlw/kasumi_open/kasumi_open.html"]
["厚生労働省","一般職事務系","東京都千代田区霞が関1-2-2","3月5日（火）","－","〇","〇","－","〇","－","－","〇","－","対面のみ","〇","－","〇","－","〇","－","－","国家公務員を志望する学生等を対象としたイベントです。霞が関の雰囲気を感じることができる絶好の機会です！","https://www.i-note.jp/mhlw/kasumi_open/kasumi_open.html","https://www.i-note.jp/mhlw/kasumi_open/kasumi_open.html"]
["厚生労働省","一般職事務系","東京都千代田区霞が関1-2-2 中央合同庁舎５号館","3月6日（水）","〇","－","－","－","〇","－","－","〇","－","オンラインのみ","－","－","〇","－","〇","－","－","国家公務員を志望する学生等を対象としたイベントです。霞が関の雰囲気を感じることができる絶好の機会です！","https://www.i-note.jp/mhlw/kasumi_open/kasumi_open.html","https://www.i-note.jp/mhlw/kasumi_open/kasumi_open.html"]
["厚生労働省","一般職事務系","東京都千代田区霞が関1-2-2　中央合同庁舎５号館","3月6日（水）","－","〇","〇","－","〇","－","－","〇","－","対面のみ","〇","－","〇","－","〇","－","－","国家公務員を志望する学生等を対象としたイベントです。霞が関の雰囲気を感じることができる絶好の機会です！","https://www.i-note.jp/mhlw/kasumi_open/kasumi_open.html","https://www.i-note.jp/mhlw/kasumi_open/kasumi_open.html"]
["厚生労働省","一般職（デジタル・電気・電子区分）","千代田区霞が関１－２－２　中央合同庁舎５号館","3月6日（水）","〇","〇","〇","－","〇","－","－","－","〇","対面のみ","〇","－","〇","－","－","－","－","厚生労働分野の情報政策を進め、国民生活の利便性向上や安心して暮らせる環境にしたいと熱意のある方は是非ご参加ください。","https://www.mhlw.go.jp/general/saiyo/kokka2/kokka2-kousei/den-jouhou.html","https://www.mhlw.go.jp/general/saiyo/kokka2/kokka2-kousei/den-jouhou.html"]
["農林水産省","","千代田区霞が関１－２－１　中央合同庁舎１号館","3月4日（月）","〇","〇","〇","〇","〇","－","－","〇","〇","対面のみ","－","－","〇","－","〇","－","〇","農林水産省は、食料の安定供給から、水田や畑、森林、海などの環境保全、農山漁村の振興に至るまでの幅広い分野を管轄する「総合政策官庁」です。活躍のフィールドは霞が関に留まらず、日本全国、そして世界にまで広がっています。関心のある方はぜひご参加ください！","https://www.maff.go.jp/j/joinus/recruit/240201.html","https://www.maff.go.jp/j/joinus/recruit/240201.html"]
["農林水産省","","千代田区霞が関１－２－１　中央合同庁舎１号館","3月5日（火）","〇","〇","〇","〇","〇","－","－","〇","〇","対面のみ","－","－","〇","－","〇","－","〇","農林水産省は、食料の安定供給から、水田や畑、森林、海などの環境保全、農山漁村の振興に至るまでの幅広い分野を管轄する「総合政策官庁」です。活躍のフィールドは霞が関に留まらず、日本全国、そして世界にまで広がっています。関心のある方はぜひご参加ください！","https://www.maff.go.jp/j/joinus/recruit/240201.html","https://www.maff.go.jp/j/joinus/recruit/240201.html"]
["農林水産省","","千代田区霞が関１－２－１　中央合同庁舎１号館","3月6日（水）","〇","〇","〇","〇","〇","－","－","〇","〇","対面のみ","－","－","〇","－","〇","－","〇","農林水産省は、食料の安定供給から、水田や畑、森林、海などの環境保全、農山漁村の振興に至るまでの幅広い分野を管轄する「総合政策官庁」です。活躍のフィールドは霞が関に留まらず、日本全国、そして世界にまで広がっています。関心のある方はぜひご参加ください！","https://www.maff.go.jp/j/joinus/recruit/240201.html","https://www.maff.go.jp/j/joinus/recruit/240201.html"]
["経済産業省","総合職","東京都千代田区霞が関1-3-1　経済産業省本省","3月1日（金）","〇","〇","－","〇","－","－","－","〇","〇","対面・オンライン併用","－","－","〇","〇","－","－","－","経済産業省のミッションは未来の日本を豊かにするための「国富の拡大」。その範囲は、産業・イノベーション政策、通商・貿易政策、資源・エネルギー政策など多岐にわたります。\n人々が豊かに暮らせる社会を創りたい…未来の日本を豊かにしたい…自分たちの未来を他人任せにせずに自分で考えて、一つ一つ実現したい人。そんな、あなたのご参加をお待ちしています！","https://www.meti.go.jp/information/recruit/event/jinji_event.html","https://www.meti.go.jp/information/recruit/event/jinji_event.html"]
["経済産業省","総合職","東京都千代田区霞が関1-3-1","3月3日（日）","〇","〇","〇","〇","－","－","－","〇","〇","対面・オンライン併用","－","－","〇","〇","－","－","－","経済産業省のミッションは未来の日本を豊かにするための「国富の拡大」。その範囲は、産業・イノベーション政策、通商・貿易政策、資源・エネルギー政策など多岐にわたります。\n人々が豊かに暮らせる社会を創りたい…未来の日本を豊かにしたい…自分たちの未来を他人任せにせずに自分で考えて、一つ一つ実現したい人。そんな、あなたのご参加をお待ちしています！","https://www.meti.go.jp/information/recruit/event/jinji_event.html","https://www.meti.go.jp/information/recruit/event/jinji_event.html"]
["経済産業省","総合職","東京都千代田区霞が関1-3-1","3月4日（月）","〇","〇","〇","〇","－","－","－","〇","〇","対面・オンライン併用","－","－","〇","〇","－","－","－","経済産業省のミッションは未来の日本を豊かにするための「国富の拡大」。その範囲は、産業・イノベーション政策、通商・貿易政策、資源・エネルギー政策など多岐にわたります。\n人々が豊かに暮らせる社会を創りたい…未来の日本を豊かにしたい…自分たちの未来を他人任せにせずに自分で考えて、一つ一つ実現したい人。そんな、あなたのご参加をお待ちしています！","https://www.meti.go.jp/information/recruit/event/jinji_event.html","https://www.meti.go.jp/information/recruit/event/jinji_event.html"]
["経済産業省","一般職","対面：経済産業省本省（千代田区霞が関1-3-1）\nオンライン：Microsoft Teams","3月3日（日）","〇","〇","〇","－","〇","－","－","〇","〇","対面・オンライン併用","〇","－","〇","－","－","－","〇","今年の霞が関OPENゼミ（一般職向け）では、経済産業省の業務説明に加え、経産省内の人事を担当する職員が登壇するパネルトークを実施いたします！ざっくばらんに学生の皆さんの御質問にお答えしていきますので、ぜひアレコレ聞いてみてください。人事担当者ならではのアドバイスが、きっとあなたのお役に立ちます！\nなお、対面参加のみ省内の見学ツアーも実施予定です！","https://www.meti.go.jp/information/recruit/event/meti_ippansyoku2023.html#open","https://www.meti.go.jp/information/recruit/event/meti_ippansyoku2023.html#open"]
["経済産業省","一般職","対面：経済産業省本省（千代田区霞が関1-3-1）\nオンライン：Microsoft Teams","3月4日（月）","〇","〇","〇","－","〇","－","－","〇","〇","対面・オンライン併用","〇","－","〇","－","－","－","〇","今年の霞が関OPENゼミ（一般職向け）では、経済産業省の業務説明に加え、経産省内の人事を担当する職員が登壇するパネルトークを実施いたします！ざっくばらんに学生の皆さんの御質問にお答えしていきますので、ぜひアレコレ聞いてみてください。人事担当者ならではのアドバイスが、きっとあなたのお役に立ちます！\nなお、対面参加のみ省内の見学ツアーも実施予定です！","https://www.meti.go.jp/information/recruit/event/meti_ippansyoku2023.html#open","https://www.meti.go.jp/information/recruit/event/meti_ippansyoku2023.html#open"]
["特許庁","事務職員","千代田区霞が関３－４－３","3月1日（金）","〇","〇","〇","－","〇","－","－","〇","－","対面のみ","－","－","〇","〇","〇","－","－","特許庁は和気あいあいとして、成長を感じ楽しく過ごせる職場です。その魅力をご紹介させていただきます！","https://www.jpo.go.jp/news/saiyo/kokka/jimu/event/kasumigaseki-open.html","https://www.jpo.go.jp/news/saiyo/kokka/jimu/event/kasumigaseki-open.html"]
["特許庁","技術系","東京都千代田区霞が関３丁目４−３　特許庁本庁舎","3月5日（火）","〇","〇","〇","〇","－","－","－","－","〇","対面のみ","－","－","〇","－","〇","－","〇","特許審査官の業務を紹介します。特許審査官は、特許庁へ出願される発明の審査や知的財産に関する施策立案などを通じて、日本の産業を支えています。少しでも興味がある方は、是非ご参加ください！","https://www.jpo.go.jp/news/saiyo/kokka/jimu/event/kasumigaseki-open.html","https://www.jpo.go.jp/news/saiyo/kokka/jimu/event/kasumigaseki-open.html"]
["特許庁","一般職（商標審査官）","東京都千代田区霞が関3丁目4番3号","3月4日（月）","〇","〇","〇","－","〇","－","－","〇","－","対面のみ","〇","－","〇","－","〇","－","－","申込先着順で、少人数制の庁内見学ツアーを行います。座談会も予定しておりますので、ふるってご応募ください！","https://www.jpo.go.jp/news/saiyo/kokka/shohyo/event/index.html","https://www.jpo.go.jp/news/saiyo/kokka/shohyo/event/index.html"]
["特許庁","デザイン系","千代田区霞が関3-4-3　特許庁本庁舎","3月4日（月）","〇","〇","〇","〇","－","－","－","－","〇","対面・オンライン併用","〇","－","〇","〇","〇","－","－","若手職員との座談会も予定しています。「デザインに興味がある」という方、「デザインを専門とする国家公務員」と聞いて気になった方、是非ご参加ください！","https://www.jpo.go.jp/news/saiyo/kokka/isho/event/index.html","https://www.jpo.go.jp/news/saiyo/kokka/isho/event/index.html"]
["国土交通省","総合職技術","東京都千代田区霞が関２－１－３","3月5日（火）","〇","〇","〇","〇","－","－","－","－","〇","対面のみ","－","－","〇","〇","〇","－","－","国土交通省の「しごと」について、最前線で活躍する職員が分野ごとに詳しく説明します！","https://www.mlit.go.jp/saiyojoho/event/synthesis_tech.html","https://www.mlit.go.jp/saiyojoho/event/synthesis_tech.html"]
["国土交通省","総合職技術","東京都千代田区霞が関２－１－３","3月6日（水）","〇","〇","－","〇","－","－","－","－","〇","オンラインのみ","－","－","〇","〇","〇","－","－","国土交通省の「しごと」について最前線で活躍する勝因が分野ごとに詳しく説明します！","https://www.mlit.go.jp/saiyojoho/event/synthesis_tech.html","https://www.mlit.go.jp/saiyojoho/event/synthesis_tech.html"]
["国土交通省","事務系","東京都千代田区霞が関2-1-3","3月4日（月）","〇","〇","〇","〇","－","－","－","〇","－","対面・オンライン併用","－","－","－","〇","－","－","－","国土交通省職員は、霞が関をはじめ、地方、海外といった様々なフィールドを歩みながら、政策を届ける先としての「現場」と常に向き合い、業務に当たっています。本イベントでは、20年以上にわたり多様な分野でキャリアを積んできた職員や、国土交通省の中枢部門で活躍している職員が登壇し、国土交通省の魅力を皆様にお伝えします。","https://www.mlit.go.jp/saiyojoho/event/synthesis_office.html","https://www.mlit.go.jp/saiyojoho/event/synthesis_office.html"]
["気象庁","","東京都港区虎ノ門3-6-9","3月5日（火）","－","－","〇","〇","〇","－","－","〇","〇","対面のみ","〇","－","〇","－","〇","－","－","毎⽇の天気予報だけではない。\n「⽣活を、命を、最前線で守り抜く。」その使命感を持って働いている現場を⾒学し、そこで活躍する職員の声を聞いてみませんか︖皆様のご参加をお待ちしております。","https://www.jma.go.jp/jma/kishou/intro/recruit/index1.html","https://www.jma.go.jp/jma/kishou/intro/recruit/index1.html"]
["運輸安全委員会","","東京都新宿区四谷1-6-1 四谷タワー15階","3月4日（月）","〇","〇","－","－","〇","－","－","〇","〇","対面のみ","〇","〇","〇","－","〇","－","－","「あの事故の原因って何だったんだろう？」と気になったことはありませんか。運輸安全委員会は、航空、鉄道、船舶の事故等を調査して原因を究明し、再発防止に寄与する機関です。「ニュースで見たことがある気がするけれども、どんな仕事をしているんだろう…」と少しでも興味を持った方も、「そんな機関があったのか！」と全く知らなかった方も、ぜひご参加ください！ ご予約をお待ちしております！","https://www.mlit.go.jp/jtsb/saiyouippansyoku.html","https://www.mlit.go.jp/jtsb/saiyouippansyoku.html"]
["運輸安全委員会","","東京都新宿区四谷1-6-1 四谷タワー15階","3月6日（水）","〇","－","－","－","〇","－","－","〇","〇","対面のみ","〇","〇","〇","－","〇","－","－","「あの事故の原因って何だったんだろう？」と気になったことはありませんか。運輸安全委員会は、航空、鉄道、船舶の事故等を調査して原因を究明し、再発防止に寄与する機関です。「ニュースで見たことがある気がするけれども、どんな仕事をしているんだろう…」と少しでも興味を持った方も、「そんな機関があったのか！」と全く知らなかった方も、ぜひご参加ください！ ご予約をお待ちしております！","https://www.mlit.go.jp/jtsb/saiyouippansyoku.html","https://www.mlit.go.jp/jtsb/saiyouippansyoku.html"]
["運輸安全委員会","","東京都新宿区四谷1-6-1 四谷タワー15階","3月6日（水）","－","〇","－","－","〇","－","－","〇","〇","オンラインのみ","－","－","〇","－","〇","－","－","「あの事故の原因って何だったんだろう？」と気になったことはありませんか。運輸安全委員会は、航空、鉄道、船舶の事故等を調査して原因を究明し、再発防止に寄与する機関です。「ニュースで見たことがある気がするけれども、どんな仕事をしているんだろう…」と少しでも興味を持った方も、「そんな機関があったのか！」と全く知らなかった方も、ぜひご参加ください！ ご予約をお待ちしております！","https://www.mlit.go.jp/jtsb/saiyouippansyoku.html","https://www.mlit.go.jp/jtsb/saiyouippansyoku.html"]
["海上保安庁","","千代田区霞が関３－１－１　中央合同庁舎４号館","3月4日（月）","〇","〇","〇","〇","－","〇","－","〇","〇","対面のみ","－","－","〇","〇","〇","－","－","海上保安庁の業務に興味がある皆様のご参加を心よりお待ちしております。\n※参加には予約が必要です。","https://www1.kaiho.mlit.go.jp/saiyo/setsumei.html#kasumi-open-seminar","https://www1.kaiho.mlit.go.jp/saiyo/setsumei.html#kasumi-open-seminar"]
["海上保安庁","","千代田区霞が関３－１－１　中央合同庁舎４号館","3月5日（火）","〇","〇","〇","〇","－","〇","－","〇","〇","対面のみ","－","－","〇","〇","〇","－","－","海上保安庁の業務に興味がある皆様のご参加を心よりお待ちしております。\n※参加には予約が必要です。","https://www1.kaiho.mlit.go.jp/saiyo/setsumei.html#kasumi-open-seminar","https://www1.kaiho.mlit.go.jp/saiyo/setsumei.html#kasumi-open-seminar"]
["海上保安庁","","千代田区霞が関３－１－１　中央合同庁舎４号館","3月4日（月）","〇","〇","〇","〇","－","〇","－","〇","〇","対面のみ","－","－","〇","〇","〇","－","－","海上保安庁の業務に興味がある皆さまのご参加を心よりお待ちしております。\n※参加には予約が必要です。","https://www1.kaiho.mlit.go.jp/saiyo/setsumei.html#kasumi-open-seminar","https://www1.kaiho.mlit.go.jp/saiyo/setsumei.html#kasumi-open-seminar"]
["環境省","","東京都千代田区霞が関一丁目2番2号 中央庁舎５号館","3月4日（月）","〇","〇","〇","〇","〇","〇","－","〇","〇","対面のみ","〇","－","〇","〇","〇","－","－","環境行政の最先端について、環境省職員が詳しくお話しします！是非お気軽にご参加ください！","https://www.env.go.jp/guide/saiyo/","https://www.env.go.jp/guide/saiyo/"]
["原子力規制庁","","東京都港区六本木1-9-9　六本木ファーストビル\n","3月5日（火）","〇","〇","〇","〇","〇","－","－","〇","〇","対面のみ","－","〇","〇","〇","〇","－","－","技術系・事務系問わず全ての試験区分から採用しています。少しでも関心のある方の参加お待ちしています！","https://www.nra.go.jp/nra/employ/online_setsumeikai.html","https://www.nra.go.jp/nra/employ/online_setsumeikai.html"]
["原子力規制庁","","東京都港区六本木1-9-9　六本木ファーストビル ","3月6日（水）","〇","〇","〇","〇","〇","－","－","〇","〇","対面のみ","－","〇","〇","〇","〇","－","－","技術系・事務系問わず全ての試験区分から採用しています。少しでも関心のある方の参加お待ちしています！","https://www.nra.go.jp/nra/employ/online_setsumeikai.html","https://www.nra.go.jp/nra/employ/online_setsumeikai.html"]
["防衛省","事務系","新宿区市谷本村町５－１","3月3日（日）","〇","－","－","〇","－","－","－","〇","－","オンラインのみ","－","－","〇","－","－","－","－","厳しさを増す安全保障環境の中、防衛省の役割は、我が国の平和と独立を守り、国の安全を保つこと。しかし、そう聞いても具体的な仕事がイメージしにくいですよね。今回の霞が関（市ヶ谷？）openゼミでは、防衛省のあらゆるフィールドで、事務官として活躍する経験豊かな職員から、安全保障を仕事にするとはどういうことなのか、その魅力も含めてたっぷりお伝えします！","https://www.mod.go.jp/j/saiyou/sougou_jimu/other/open_kasumigaseki.html","https://www.mod.go.jp/j/saiyou/sougou_jimu/other/open_kasumigaseki.html"]
["防衛省","事務系","新宿区市谷本村町５－１","3月5日（火）","〇","〇","〇","〇","－","－","－","〇","－","対面・オンライン併用","－","－","〇","－","－","－","－","厳しさを増す安全保障環境の中、防衛省の役割は、我が国の平和と独立を守り、国の安全を保つこと。しかし、そう聞いても具体的な仕事がイメージしにくいですよね。今回の霞が関（市ヶ谷？）openゼミでは、防衛省のあらゆるフィールドで、事務官として活躍する経験豊かな職員から、安全保障を仕事にするとはどういうことなのか、その魅力も含めてたっぷりお伝えします！","https://www.mod.go.jp/j/saiyou/sougou_jimu/other/open_kasumigaseki.html","https://www.mod.go.jp/j/saiyou/sougou_jimu/other/open_kasumigaseki.html"]
["防衛省・防衛装備庁","一般職向け","東京都新宿区市谷本村町５－１","3月4日（月）","〇","〇","〇","－","〇","－","－","〇","〇","対面・オンライン併用","〇","〇","〇","－","〇","－","－","防衛省本省（本庁）の勤務に関心がある方、職員から直接お話を聞けるチャンスです。当日は業務説明のほか、懇談会や施設見学も予定していますので、是非ご参加ください。","https://www.mod.go.jp/j/saiyou/ippan_senmon/schedule/is_d_20240201c.html","https://www.mod.go.jp/j/saiyou/ippan_senmon/schedule/is_d_20240201c.html"]
["防衛装備庁","技術系","防衛装備庁（東京都新宿区市谷本村町５－１）\n防衛装備庁艦艇装備研究所（東京都目黒区中目黒2-2-1）","3月1日（金）","〇","〇","〇","〇","〇","－","－","－","〇","対面のみ","〇","－","〇","〇","－","〇","－","防衛装備品の研究開発業務について施設内の見学等も含めてご説明させていただきます。\nご関心のある方はこの機会にぜひ、ご参加ください！！","https://www.mod.go.jp/atla/saiyou/setsumeikai/gyomusetsumeikai.html","https://www.mod.go.jp/atla/saiyou/setsumeikai/gyomusetsumeikai.html"]